bitfinex/quotes_ETHUSD_20260214
["timestamp","ask_amount","ask_price","bid_price","bid_amount"]
[1771030120878,0.0011,2053.7,2053.4,0.47490984]
[1771030122321,0.0011,2053.7,2053.2,0.47490984]
[1771030122678,0.0011,2053.7,2053.2,1.21760199]
[1771030122883,0.0011,2053.7,2053.3,0.47490984]
[1771030123083,0.0011,2053.7,2053.4,0.47490984]
[1771030123688,0.0011,2054.0,2053.6,0.47490984]
[1771030123888,0.0011,2054.0,2053.7,0.47490984]
[1771030124298,0.0011,2054.0,2053.5,1.651]
[1771030124616,0.0011,2054.0,2053.5,2.12590984]
[1771030124779,0.49735472,2053.9,2053.1,1.69253668]
[1771030124984,0.49735472,2053.9,2053.2,1.652]
[1771030125179,0.49735472,2053.8,2053.2,1.652]
[1771030125415,1.21828197,2054.0,2053.3,0.97490984]
[1771030125617,1.71563669,2054.0,2053.3,0.97490984]
[1771030126189,0.49735472,2053.9,2053.3,0.5]
[1771030126416,0.0011,2054.0,2053.3,0.47490984]
[1771030126594,0.0011,2054.0,2053.2,2.86960958]
[1771030126595,0.0011,2054.0,2053.6,0.47490984]
[1771030128947,0.0011,2054.0,2053.4,0.47490984]
[1771030129232,0.0011,2054.0,2053.4,1.69240059]
[1771030129586,0.0011,2054.0,2053.4,1.21749075]
[1771030129791,0.0011,2054.0,2053.5,0.47490984]
[1771030130792,0.0011,2054.0,2053.5,7.69509136]
[1771030130991,0.0011,2054.0,2053.6,0.47490984]
[1771030131618,0.0011,2054.0,2053.6,1.21736059]
[1771030131801,0.0011,2054.0,2053.7,0.47490984]
[1771030133012,0.0011,2054.2,2053.7,0.47490984]
[1771030133392,0.0011,2054.2,2053.8,7.69509136]
[1771030133593,0.0011,2054.2,2053.9,0.47490984]
[1771030133793,0.0011,2054.2,2053.9,1.69210068]
[1771030133996,0.0011,2054.5,2054.1,0.47490984]
[1771030134929,1.21794945,2054.5,2054.0,1.655]
[1771030135131,1.71530417,2054.5,2054.0,1.655]
[1771030135320,1.21794945,2054.5,2054.0,1.655]
[1771030135505,0.0011,2054.5,2054.0,1.655]
[1771030135706,1.2179442,2054.5,2054.0,1.655]
[1771030136108,0.0011,2054.5,2054.0,1.655]
[1771030137820,0.0011,2054.5,2054.0,2.12990984]
[1771030138744,7.69509136,2054.2,2053.3,0.47490984]
[1771030138915,0.49735472,2054.3,2053.5,0.47490984]
[1771030139224,0.49845472,2054.5,2053.6,7.69509136]
[1771030139541,0.49845472,2054.5,2053.7,0.47490984]
[1771030140431,1.21690031,2054.4,2053.7,0.47490984]
[1771030140950,0.47302784,2054.3,2053.6,1.655]
[1771030141242,0.47302784,2054.2,2053.6,1.655]
[1771030141615,0.47302784,2054.2,2053.2,0.45225372]
[1771030141616,8.1681192,2054.1,2053.2,0.45225372]
[1771030141816,0.47302784,2054.1,2053.2,0.45225372]
[1771030142039,0.47302784,2054.0,2053.2,0.45225372]
[1771030142441,1.21719655,2053.9,2053.2,0.45325372]
[1771030142624,0.47302784,2053.8,2053.2,0.001]
[1771030143149,1.21719655,2053.9,2053.2,0.45325372]
[1771030143719,1.69016667,2054.0,2053.2,1.67085817]
[1771030144018,1.69016667,2054.0,2053.2,0.45325372]
[1771030144242,1.21713883,2054.0,2053.3,0.45225372]
[1771030144540,1.21713883,2054.0,2053.4,0.5]
[1771030145941,0.47302784,2053.9,2053.4,0.5]
[1771030147719,1.21725581,2053.8,2053.4,0.5]
[1771030149559,1.592,2054.1,2053.4,0.5]
[1771030149560,6.85302784,2054.2,2053.4,2.16973749]
[1771030149734,2.81107803,2054.1,2053.4,0.95225372]
[1771030150544,1.21707803,2054.1,2053.4,0.95225372]
[1771030151350,1.21707803,2054.1,2053.4,2.16973872]
[1771030152664,9.19205427,2054.2,2053.5,0.45225372]
[1771030153241,6.38,2054.2,2053.5,0.45225372]
[1771030154857,6.38,2054.2,2053.7,0.45225372]
[1771030155065,1.21794838,2054.5,2053.7,0.45225372]
[1771030155757,0.0011,2054.5,2053.7,0.45225372]
[1771030156371,0.47302784,2054.4,2053.7,0.45225372]
[1771030156869,1.68994711,2054.4,2053.9,0.5]
[1771030157061,1.21691927,2054.4,2053.9,0.5]
[1771030157257,1.2179824,2054.5,2053.9,0.5]
[1771030157844,1.2179824,2054.5,2053.9,0.95225372]
[1771030158246,0.0011,2054.5,2054.0,0.45225372]
[1771030158972,0.0011,2054.5,2054.1,0.45225372]
[1771030161078,0.1363362,2054.8,2054.3,0.45225372]
[1771030161990,0.17547968,2055.5,2055.0,0.45225372]
[1771030162193,0.47302784,2055.4,2054.4,0.45225372]
[1771030162692,0.47302784,2055.2,2054.2,0.45225372]
[1771030163181,1.68951365,2055.1,2054.2,1.66925281]
[1771030164658,1.68951365,2055.1,2054.4,0.5]
[1771030165365,4.86562763,2055.3,2054.4,0.95225372]
[1771030165767,0.47302784,2055.2,2054.4,0.5]
[1771030166877,0.47302784,2055.2,2054.4,2.16912888]
[1771030167085,1.21648581,2055.1,2054.4,0.95225372]
[1771030167381,1.2164161,2055.3,2054.5,0.45225372]
[1771030167586,2.8134161,2055.3,2054.5,0.45225372]
[1771030167761,1.2164161,2055.3,2054.5,0.45225372]
[1771030167960,5.3383257,2055.4,2054.5,0.45225372]
[1771030167961,1.21633538,2055.4,2054.5,0.45225372]
[1771030168374,1.39176574,2055.5,2054.5,0.45225372]
[1771030168955,0.17547968,2055.5,2054.5,0.45225372]
[1771030169161,0.17547968,2055.5,2054.7,0.45225372]
[1771030171587,0.17547968,2055.5,2054.9,0.45143612]
[1771030171961,0.17547968,2055.5,2054.7,4.86673642]
[1771030171962,1.39173536,2055.5,2054.7,1.66811384]
[1771030172287,1.88368495,2055.5,2054.6,1.648]
[1771030173685,0.49194959,2055.4,2054.6,1.648]
[1771030175298,0.49194959,2055.4,2054.6,2.86476791]
[1771030175494,1.39173536,2055.5,2054.7,0.45143612]
[1771030175878,0.17547968,2055.5,2054.8,0.45143612]
[1771030176392,1.39173067,2055.5,2054.8,0.45143612]
[1771030176588,1.88368026,2055.5,2054.6,2.86475157]
[1771030176794,1.88368026,2055.5,2054.6,3.31618769]
[1771030176995,1.39173067,2055.5,2054.7,0.45143612]
[1771030177891,1.39173067,2055.5,2054.7,1.66814867]
[1771030177892,1.88368026,2055.5,2054.7,1.66814867]
[1771030178300,1.88368026,2055.5,2054.7,1.66815287]
[1771030179694,1.88368026,2055.5,2054.6,2.86473694]
[1771030179895,1.39173067,2055.5,2054.6,2.86473694]
[1771030180199,0.45776429,2055.4,2054.6,2.86473694]
[1771030181675,0.45776429,2055.4,2054.6,1.648]
[1771030182002,1.67413173,2055.3,2054.6,1.648]
[1771030182991,8.05411666,2055.4,2054.6,3.36244655]
[1771030183193,8.05411666,2055.4,2054.6,2.14568056]
[1771030184297,8.05411666,2055.4,2054.6,3.36245917]
[1771030184502,8.05411666,2055.4,2054.6,2.14568056]
[1771030185085,7.59635237,2055.4,2054.7,0.49768056]
[1771030185284,7.59635237,2055.4,2054.6,2.86478115]
[1771030185285,8.05411666,2055.4,2054.6,2.86478115]
[1771030185598,0.45776429,2055.3,2054.6,1.648]
[1771030186888,1.21642662,2055.2,2054.6,1.648]
[1771030187092,1.67419091,2055.2,2054.6,1.648]
[1771030187979,9.35632817,2055.2,2054.6,1.648]
[1771030189494,9.35632817,2055.2,2054.4,0.5]
[1771030190903,1.67419091,2055.2,2054.4,0.5]
[1771030192604,0.45776429,2055.1,2054.4,0.5]
[1771030193196,1.21654501,2055.0,2054.4,0.99768056]
[1771030194905,1.67429253,2055.1,2054.4,2.21455657]
[1771030195111,1.21646629,2055.2,2054.5,0.49768056]
[1771030195483,1.21646629,2055.2,2054.6,0.49768056]
[1771030196315,3.26614141,2055.3,2054.6,0.49768056]
[1771030196504,1.67414141,2055.3,2054.6,0.49768056]
[1771030197715,1.67414141,2055.3,2054.6,1.71445625]
[1771030197908,1.67414141,2055.3,2054.6,0.49768056]
[1771030200200,0.45776429,2055.2,2054.4,0.99768056]
[1771030200520,0.45776429,2055.2,2054.1,2.515]
[1771030200521,0.45776429,2055.2,2054.2,1.71467571]
[1771030200815,0.45776429,2055.0,2054.1,2.515]
[1771030201114,0.48007757,2054.8,2054.1,0.001]
[1771030202018,0.48007757,2054.6,2054.1,0.001]
[1771030202322,0.48007757,2054.6,2053.8,0.001]
[1771030202323,0.48007757,2054.5,2053.8,0.001]
[1771030202615,0.48007757,2054.3,2053.8,0.001]
[1771030202820,0.38007757,2054.3,2053.8,0.001]
[1771030204315,1.21701879,2054.2,2053.8,0.001]
[1771030205922,1.21700155,2054.3,2053.8,0.001]
[1771030208116,0.48007757,2054.2,2053.8,0.001]
[1771030208904,1.21707803,2054.1,2053.8,0.001]
[1771030209501,1.21706359,2054.2,2053.8,0.001]
[1771030209724,7.59700598,2054.3,2053.8,0.001]
[1771030210125,8.07708355,2054.3,2053.8,0.001]
[1771030211027,15.7672862,2054.3,2053.8,0.001]
[1771030212728,15.28720863,2054.3,2053.8,0.001]
[1771030212899,7.59700598,2054.3,2053.8,0.001]
[1771030213099,6.38,2054.3,2053.8,0.001]
[1771030213428,6.38,2054.3,2053.8,0.48283672]
[1771030214120,9.19995407,2054.4,2053.8,0.48283672]
[1771030217027,9.19995407,2054.4,2053.8,0.001]
[1771030217028,7.69020265,2054.3,2053.8,0.001]
[1771030217206,8.17028022,2054.3,2053.8,0.001]
[1771030219132,1.21701879,2054.2,2053.8,0.001]
[1771030219317,1.21700253,2054.3,2053.8,0.48283672]
[1771030219523,1.11700253,2054.3,2053.8,0.48283672]
[1771030222524,1.11700253,2054.3,2053.8,0.001]
[1771030227547,1.5970801,2054.3,2053.8,0.001]
[1771030227750,9.28728275,2054.3,2053.8,0.001]
[1771030229255,10.91928275,2054.3,2053.8,0.001]
[1771030230752,7.69020265,2054.1,2053.8,0.001]
[1771030231264,1.21713729,2054.0,2053.8,0.001]
[1771030231750,2.92317893,2053.9,2053.6,0.001]
[1771030231959,2.92317893,2053.8,2053.6,0.001]
[1771030232257,2.92317893,2053.7,2053.6,0.001]
[1771030232757,1.21713729,2054.0,2053.6,0.001]
[1771030233458,1.21707803,2054.1,2053.6,0.001]
[1771030233661,1.11707803,2054.1,2053.6,0.001]
[1771030234138,1.57754719,2054.1,2053.6,0.001]
[1771030234959,1.57754719,2054.1,2053.3,0.47707408]
[1771030234960,7.69108175,2053.8,2053.3,0.47707408]
[1771030235532,1.21731508,2053.7,2053.3,0.47707408]
[1771030236754,1.21731508,2053.7,2053.3,0.001]
[1771030237158,0.46046916,2053.6,2053.3,0.001]
[1771030237359,8.15155091,2053.6,2053.1,0.001]
[1771030237938,1.21743364,2053.5,2053.1,0.001]
[1771030243159,1.645,2053.7,2053.1,0.49226237]
[1771030243160,1.21735089,2053.7,2053.1,0.49226237]
[1771030243354,2.87235089,2053.7,2053.1,0.49226237]
[1771030244068,1.21728377,2053.8,2053.2,0.49126237]
[1771030244266,4.86890561,2053.9,2053.2,0.49126237]
[1771030244267,1.656,2053.9,2053.2,0.49126237]
[1771030244476,1.656,2053.9,2053.3,0.5]
[1771030244771,1.656,2053.9,2053.4,0.49126237]
[1771030246767,1.21725581,2053.8,2053.3,0.5]
[1771030247742,1.70852321,2053.8,2053.3,0.5]
[1771030248350,1.21725581,2053.8,2053.3,0.5]
[1771030249472,1.70852321,2053.8,2053.3,0.5]
[1771030249673,0.4912674,2053.7,2053.3,0.5]
[1771030249871,0.4912674,2053.7,2053.1,0.001]
[1771030250249,1.659,2053.6,2053.1,0.001]
[1771030250679,1.659,2053.6,2053.1,0.49226237]
[1771030251271,1.70852321,2053.8,2053.1,0.49226237]
[1771030251474,1.66,2053.7,2053.1,0.49226237]
[1771030251675,1.21737436,2053.6,2053.1,0.49226237]
[1771030252180,6.52949746,2053.7,2053.1,0.49226237]
[1771030252181,1.21735171,2053.7,2053.1,0.49226237]
[1771030252361,2.87735171,2053.7,2053.1,0.49226237]
[1771030252555,1.21735171,2053.7,2053.1,0.49226237]
[1771030254186,4.86917562,2053.8,2053.1,0.49226237]
[1771030257167,5.36044302,2053.8,2053.1,0.49226237]
[1771030258586,1.21725581,2053.8,2053.2,0.49126237]
[1771030258788,9.25722697,2053.9,2053.2,0.49126237]
[1771030258990,7.69108175,2053.7,2053.1,0.001]
[1771030259292,0.4912674,2053.6,2053.1,0.001]
[1771030259498,0.4912674,2053.8,2053.1,0.49226237]
[1771030259670,1.666,2053.6,2053.1,0.49226237]
[1771030260492,1.666,2053.6,2053.2,0.49126237]
[1771030261093,2.8833791,2053.6,2053.1,0.001]
[1771030261395,7.69108175,2053.5,2053.1,0.001]
[1771030261999,2.8833791,2053.6,2053.1,0.001]
[1771030266407,2.8833791,2053.6,2053.1,0.48755278]
[1771030266408,1.666,2053.6,2053.1,0.48755278]
[1771030271205,1.21734255,2053.7,2053.1,0.48755278]
[1771030272709,1.66777459,2053.8,2053.2,0.48655278]
[1771030275719,8.04777459,2053.8,2053.2,0.48655278]
[1771030276216,9.72677459,2053.8,2053.2,0.48655278]
[1771030278114,9.72676671,2053.8,2053.2,0.48655278]
[1771030279418,9.27625673,2053.8,2053.2,0.48655278]
[1771030281530,9.72676671,2053.8,2053.2,0.48655278]
[1771030285937,0.45050998,2053.7,2053.1,0.001]
[1771030287815,1.21737436,2053.6,2053.1,0.001]
[1771030288236,1.66788434,2053.6,2053.1,0.001]
[1771030290136,4.86929541,2053.7,2053.1,0.48755278]
[1771030291139,1.21731508,2053.7,2053.1,0.48755278]
[1771030291715,9.27628603,2053.8,2053.1,0.48755278]
[1771030293342,9.27628603,2053.8,2053.2,0.49340482]
[1771030294814,7.59728603,2053.8,2053.2,0.49340482]
[1771030295944,0.46471199,2053.7,2053.1,0.001]
[1771030296544,0.46471199,2053.7,2053.1,0.49440482]
[1771030296738,0.46471199,2053.7,2053.1,0.001]
[1771030297914,1.21737436,2053.6,2053.1,0.001]
[1771030298144,1.68208635,2053.6,2053.1,0.001]
[1771030298844,1.21737436,2053.6,2053.1,0.46077118]
[1771030299738,1.67251699,2053.7,2053.1,0.46077118]
[1771030301457,1.21735734,2053.7,2053.1,0.46077118]
[1771030306750,8.05245955,2053.8,2053.1,0.46077118]
[1771030306951,6.38,2053.8,2053.2,7.691261]
[1771030307154,6.38,2053.8,2053.3,0.45977118]
[1771030307366,7.59726143,2053.8,2053.3,0.45977118]
[1771030308487,0.45515965,2053.7,2053.1,0.001]
[1771030310072,0.45515965,2053.5,2053.1,0.001]
[1771030310240,0.45515965,2053.5,2052.9,0.001]
[1771030311871,0.45515965,2053.5,2052.9,0.46077118]
[1771030312180,1.67262974,2053.5,2052.9,0.46077118]
[1771030315172,1.21747009,2053.5,2052.9,0.46077118]
[1771030315345,6.83515965,2053.7,2053.1,0.45977118]
[1771030315346,7.59735692,2053.7,2053.1,0.45977118]
[1771030322670,0.49568316,2053.6,2052.9,0.46611288]
[1771030322874,0.49568316,2053.4,2052.9,0.001]
[1771030325954,2.9494779,2053.5,2052.9,0.46611288]
[1771030329568,3.44516106,2053.5,2052.9,0.46611288]
[1771030329988,2.9494779,2053.5,2052.9,0.46611288]
[1771030330174,1.2174779,2053.5,2052.9,0.46611288]
[1771030333384,3.44909293,2053.6,2052.9,1.68389428]
[1771030333589,1.736,2053.6,2053.0,0.46511288]
[1771030334258,6.87568316,2053.7,2053.0,0.46511288]
[1771030334456,1.738,2053.6,2053.0,0.46511288]
[1771030339058,1.738,2053.6,2053.1,0.46511288]
[1771030339666,7.59731624,2053.7,2053.1,0.46511288]
[1771030341878,7.59731624,2053.7,2053.1,1.21765741]
[1771030342080,7.59731624,2053.7,2053.2,0.46511288]
[1771030342285,6.38,2053.7,2053.2,0.46511288]
[1771030345683,7.59732425,2053.7,2053.2,0.46511288]
[1771030346589,6.38,2053.7,2053.2,0.46511288]
[1771030347704,9.34040208,2053.8,2053.2,0.46511288]
[1771030354013,9.83142071,2053.8,2053.2,0.46511288]
[1771030354318,0.49101863,2053.7,2052.9,1.70675461]
[1771030354509,0.49101863,2053.7,2053.0,0.48796975]
[1771030356118,1.21737436,2053.6,2053.0,1.7056976]
[1771030356318,1.70837936,2053.7,2053.0,1.7056976]
[1771030358711,8.1231,2053.8,2053.1,0.4801248]
[1771030359217,1.7431,2053.8,2053.1,0.4801248]
[1771030363114,1.7431,2053.8,2053.2,1.69773633]
[1771030363640,0.0011,2053.8,2053.3,0.4801248]
[1771030363813,0.0011,2053.8,2053.4,0.4801248]
[1771030364931,0.0011,2053.8,2053.2,1.69773633]
[1771030365627,0.45263004,2053.8,2053.2,0.4801248]
[1771030365827,0.45263004,2053.8,2053.1,2.79963439]
[1771030366202,0.45263004,2053.8,2053.1,3.27975919]
[1771030367232,1.6698954,2053.8,2053.1,3.27975919]
[1771030369034,0.0011,2053.8,2053.2,0.4801248]
[1771030369208,0.0011,2053.8,2053.3,1.69767703]
[1771030375358,0.0011,2053.8,2053.3,1.21755223]
[1771030375525,0.0011,2053.8,2053.4,0.4801248]
[1771030379833,0.0011,2053.8,2053.4,1.6975643]
[1771030380057,0.0011,2053.8,2053.5,0.4801248]
[1771030381662,0.0011,2053.8,2053.1,0.450183]
[1771030381663,0.47165752,2053.8,2053.1,0.450183]
[1771030381962,0.47165752,2053.8,2053.2,2.81757254]
[1771030382355,0.47165752,2053.8,2053.2,3.26775554]
[1771030383831,0.47055752,2053.7,2053.2,1.6]
[1771030384068,0.0011,2053.8,2053.3,0.450183]
[1771030384239,0.0011,2053.8,2053.3,1.66768343]
[1771030388483,0.0011,2053.8,2053.4,0.450183]
[1771030389770,0.0011,2053.8,2053.5,3.27461664]
[1771030390140,0.0011,2053.8,2053.6,0.450183]
[1771030392466,0.0011,2054.0,2053.6,1.66753242]
[1771030394070,0.0011,2054.0,2053.6,1.21734942]
[1771030395469,0.0011,2054.0,2053.6,1.66753242]
[1771030397442,0.0011,2054.4,2053.7,7.69369221]
[1771030397643,0.0011,2054.4,2053.6,1.21734942]
[1771030397644,0.0011,2054.4,2053.9,7.69369221]
[1771030397847,0.0011,2054.6,2054.2,0.450183]
[1771030398957,6.85165752,2054.8,2054.4,0.450183]
[1771030398958,0.0011,2054.8,2054.4,0.450183]
[1771030399271,0.0011,2054.8,2054.5,1.21684108]
[1771030399476,6.38,2055.2,2054.5,1.21684108]
[1771030399477,0.47055752,2055.2,2054.5,1.66702408]
[1771030399777,0.47055752,2055.2,2054.6,0.450183]
[1771030400676,0.0011,2054.9,2054.6,0.450183]
[1771030400877,0.17547968,2055.5,2054.8,0.450183]
[1771030401101,0.6460372,2055.5,2054.7,9.31469221]
[1771030401270,0.47055752,2055.4,2054.8,1.66684642]
[1771030401871,0.17547968,2055.5,2054.8,1.66684642]
[1771030402192,0.6460372,2055.5,2054.8,1.66684642]
[1771030402356,0.6460372,2055.5,2054.9,0.450183]
[1771030403283,0.6460372,2055.5,2055.1,8.14387521]
[1771030403284,0.17547968,2055.5,2055.1,8.14387521]
[1771030403588,0.17547968,2055.5,2055.2,0.450183]
[1771030404779,13.66261278,2057.3,2055.4,0.450183]
[1771030404780,0.47055752,2056.1,2055.4,0.450183]
[1771030405185,0.25423257,2056.4,2056.0,8.14387521]
[1771030405386,0.47055752,2056.8,2056.1,1.6531851]
[1771030405572,0.25413366,2056.8,2056.3,0.450183]
[1771030405769,0.47055752,2056.9,2056.0,1.21593184]
[1771030405973,0.47055752,2056.9,2056.1,1.625]
[1771030406402,0.47055752,2057.1,2056.1,2.075183]
[1771030406704,0.47055752,2056.9,2055.8,1.21606512]
[1771030407002,2.96525563,2057.2,2055.6,12.55826512]
[1771030407003,0.47055752,2056.7,2055.7,2.84113075]
[1771030407202,0.47055752,2056.7,2055.7,3.29131375]
[1771030407504,0.47055752,2056.6,2055.8,8.14387521]
[1771030409302,0.47055752,2056.6,2055.7,2.84113075]
[1771030409671,0.47055752,2056.4,2055.7,2.84113075]
[1771030410083,0.47055752,2056.4,2055.7,2.8411266]
[1771030411676,0.47055752,2056.4,2055.7,10.53481881]
[1771030412074,0.48188814,2056.3,2055.7,2.8411266]
[1771030413010,1.746,2056.6,2055.7,10.99226468]
[1771030413179,2.22788814,2056.6,2055.8,0.45744587]
[1771030413578,0.48188814,2056.5,2055.8,0.45744587]
[1771030414809,1.21559892,2056.6,2055.9,1.21601245]
[1771030415102,0.48188814,2056.7,2055.9,1.67345832]
[1771030415103,1.69748117,2056.7,2055.9,1.67345832]
[1771030415481,1.69748117,2056.7,2056.0,0.45744587]
[1771030416584,0.48188814,2056.6,2055.9,1.21601245]
[1771030417010,3.44140613,2056.8,2055.9,0.45744587]
[1771030417181,1.744,2056.8,2055.9,0.45744587]
[1771030417385,9.37002617,2056.9,2056.1,0.45744587]
[1771030417386,0.48298814,2056.9,2056.1,0.45744587]
[1771030417582,0.48298814,2056.9,2056.2,0.45744587]
[1771030417802,7.67156524,2056.8,2056.1,1.625]
[1771030417988,0.48188814,2056.7,2056.1,1.625]
[1771030418184,7.67156524,2056.6,2056.1,1.625]
[1771030418407,8.15417824,2056.6,2056.1,1.625]
[1771030418597,0.482613,2056.6,2056.1,1.625]
[1771030418797,0.482613,2056.6,2055.8,6.9753277]
[1771030419110,0.482613,2056.6,2056.0,0.5]
[1771030419638,0.0011,2056.9,2056.1,0.48624373]
[1771030420486,0.0011,2056.9,2056.3,0.48624373]
[1771030421198,0.0011,2056.9,2056.3,1.70197353]
[1771030421623,0.0011,2056.9,2056.3,1.2157298]
[1771030421938,0.0011,2056.9,2056.4,0.48624373]
[1771030422232,0.0011,2056.9,2056.3,1.2157298]
[1771030422385,0.0011,2056.9,2056.3,1.70197353]
[1771030423597,0.0011,2056.9,2056.4,0.48624373]
[1771030423999,0.0011,2056.9,2056.5,0.48624373]
[1771030424329,0.0011,2057.1,2056.7,0.48624373]
[1771030424540,0.0011,2057.1,2056.5,0.48624373]
[1771030424743,0.483713,2057.1,2056.5,1.626]
[1771030425041,0.483713,2057.1,2056.4,0.48624373]
[1771030425042,0.482613,2057.0,2056.3,1.626]
[1771030425618,1.69801386,2057.0,2056.3,2.8417735]
[1771030425818,1.69801386,2057.0,2056.3,3.32801723]
[1771030426421,0.482613,2057.0,2056.3,3.32801723]
[1771030426617,1.69901943,2057.1,2056.5,0.5]
[1771030426815,1.69901943,2057.1,2055.8,0.48624373]
[1771030426816,0.482613,2056.7,2055.8,0.48624373]
[1771030427545,0.482613,2056.7,2055.7,10.51469398]
[1771030427546,8.8871638,2056.6,2055.7,1.627]
[1771030427744,0.482613,2056.5,2055.7,1.627]
[1771030427963,0.482613,2056.3,2055.7,0.001]
[1771030429331,1.741,2056.3,2055.7,0.001]
[1771030429531,0.876,2056.5,2055.7,0.001]
[1771030429532,0.482613,2056.5,2055.7,0.001]
[1771030429742,0.482613,2056.3,2055.7,0.001]
[1771030430747,1.21571678,2056.4,2055.7,0.001]
[1771030430945,3.44031401,2056.5,2055.7,0.48724373]
[1771030431446,2.95770101,2056.5,2055.7,0.48724373]
[1771030431749,2.95770101,2056.5,2055.7,1.70332698]
[1771030432150,2.95770101,2056.5,2055.8,0.48624373]
[1771030432670,2.95770101,2056.5,2055.7,1.21708325]
[1771030432671,0.482613,2056.4,2055.7,0.001]
[1771030433938,1.6983889,2056.3,2055.7,0.001]
[1771030435957,0.482613,2056.2,2055.7,0.001]
[1771030438058,0.482613,2056.0,2055.7,0.001]
[1771030438956,0.482613,2056.0,2055.5,0.001]
[1771030439557,2.224613,2056.0,2055.5,0.001]
[1771030439944,1.21601245,2055.9,2055.5,0.001]
[1771030440842,0.482613,2055.8,2055.5,0.001]
[1771030441039,0.482613,2055.8,2055.2,0.001]
[1771030442168,1.66629371,2055.7,2055.2,0.001]
[1771030442743,1.742,2056.0,2055.2,0.4857422]
[1771030442960,1.21601245,2055.9,2055.2,0.4857422]
[1771030445971,1.66617541,2055.9,2055.2,0.4857422]
[1771030446854,1.66617541,2055.9,2055.2,0.001]
[1771030447050,0.45016296,2055.8,2055.2,0.001]
[1771030449166,1.21613075,2055.7,2055.2,0.001]
[1771030450376,1.66629371,2055.7,2055.2,0.001]
[1771030451754,0.45016296,2055.9,2055.2,0.001]
[1771030454183,1.66623456,2055.8,2055.2,0.001]
[1771030455091,0.45016296,2055.7,2055.2,0.001]
[1771030457279,1.21618992,2055.6,2055.2,0.001]
[1771030460375,7.59618992,2055.6,2055.2,0.001]
[1771030460577,6.38,2055.6,2055.2,0.001]
[1771030460776,6.38,2055.6,2055.2,0.4857422]
[1771030461390,0.45016296,2055.5,2054.9,0.001]
[1771030461564,1.748,2055.4,2054.9,0.001]
[1771030462085,2.19816296,2055.4,2054.9,0.001]
[1771030462263,2.91427711,2055.3,2054.9,0.001]
[1771030462460,2.91427711,2055.2,2054.9,0.001]
[1771030462666,2.91427711,2055.1,2054.9,0.001]
[1771030462866,2.91427711,2055.0,2054.9,0.001]
[1771030463083,2.91427711,2055.0,2054.9,0.4857422]
[1771030463283,1.748,2055.4,2054.9,0.4857422]
[1771030463796,1.21619934,2055.6,2054.9,0.4857422]
[1771030464092,1.21619934,2055.6,2055.0,0.4847422]
[1771030464388,9.34617284,2055.7,2055.0,0.4847422]
[1771030465281,2.96617284,2055.7,2055.0,0.4847422]
[1771030466765,2.96617284,2055.7,2055.0,1.70127634]
[1771030466965,1.21617284,2055.7,2055.1,0.4847422]
[1771030468671,1.6663358,2055.7,2055.1,0.4847422]
[1771030468897,1.6663358,2055.7,2054.9,0.4857422]
[1771030469102,1.6663358,2055.7,2055.0,0.4847422]
[1771030470900,1.6663358,2055.7,2054.9,0.001]
[1771030470901,0.48244643,2055.6,2054.9,0.001]
[1771030471086,0.48244643,2055.4,2054.9,0.001]
[1771030474707,1.21636744,2055.3,2054.9,0.001]
[1771030476701,4.86546976,2055.4,2054.9,0.001]
[1771030477084,5.34791619,2055.4,2054.9,0.001]
[1771030477787,4.86546976,2055.4,2054.9,0.001]
[1771030478193,9.34829198,2055.5,2054.9,0.45413826]
[1771030479299,6.38,2055.5,2055.0,0.46329994]
[1771030480105,7.59624995,2055.5,2055.0,0.46329994]
[1771030480311,6.38,2055.5,2055.0,0.46329994]
[1771030480491,2.23458019,2055.8,2055.0,0.46329994]
[1771030480492,2.97310952,2055.8,2055.0,0.46329994]
[1771030481010,2.97310952,2055.8,2055.1,0.46329994]
[1771030481584,2.97310952,2055.8,2054.9,0.001]
[1771030481585,0.47758019,2055.7,2054.9,0.001]
[1771030481788,0.47758019,2055.7,2054.9,0.46429994]
[1771030482898,1.21618992,2055.6,2055.0,0.46329994]
[1771030494820,7.59616917,2055.7,2055.1,0.46329994]
[1771030496246,0.0011,2055.9,2055.7,0.46329994]
[1771030498211,0.0011,2055.9,2055.5,0.46329994]
[1771030499524,0.0011,2055.9,2055.4,1.588]
[1771030499525,0.0011,2055.9,2055.3,2.05129994]
[1771030499914,0.47868019,2055.9,2055.2,0.46329994]
[1771030501221,0.46976071,2055.7,2055.0,2.07062567]
[1771030501433,0.46976071,2055.7,2054.9,0.001]
[1771030503508,0.46976071,2055.5,2054.9,0.001]
[1771030505118,0.46976071,2055.5,2054.7,0.001]
[1771030505617,0.46976071,2055.3,2054.7,0.001]
[1771030505937,2.23776071,2055.3,2054.7,0.001]
[1771030507111,0.46976071,2055.2,2054.7,0.001]
[1771030508024,1.68624652,2055.1,2054.7,0.001]
[1771030508224,1.68624652,2055.1,2054.6,0.001]
[1771030508421,0.46976071,2055.0,2054.5,0.001]
[1771030508736,6.84976071,2055.0,2054.5,0.001]
[1771030509110,6.38,2055.0,2054.5,0.001]
[1771030509314,6.38,2055.0,2054.5,0.48362567]
[1771030509742,6.84976071,2055.0,2054.5,0.001]
[1771030509917,0.46976071,2054.9,2054.5,0.001]
[1771030510250,1.21666342,2054.8,2054.3,0.001]
[1771030511249,1.68642413,2054.8,2054.3,0.001]
[1771030512228,0.46976071,2054.7,2054.3,0.001]
[1771030513042,0.46976071,2054.7,2054.1,0.001]
[1771030514441,0.46976071,2054.5,2054.1,0.001]
[1771030514619,0.46976071,2054.4,2054.1,0.001]
[1771030516443,1.21695954,2054.3,2054.1,0.001]
[1771030517248,1.21695954,2054.3,2054.0,0.001]
[1771030517925,1.21693992,2054.4,2054.0,0.001]
[1771030519736,1.21693992,2054.4,2054.0,0.48362567]
[1771030520319,2.98987044,2054.5,2054.0,0.48362567]
[1771030520948,4.86699671,2054.7,2054.0,0.48362567]
[1771030523035,1.21672263,2054.7,2054.1,0.48262567]
[1771030524938,4.86646892,2054.9,2054.2,0.48262567]
[1771030525538,7.59657147,2055.0,2054.4,0.48262567]
[1771030525744,6.38,2055.0,2054.4,0.48262567]
[1771030527443,2.99549443,2055.1,2054.4,0.48262567]
[1771030527852,2.99549443,2055.1,2054.5,0.48262567]
[1771030529123,1.779,2055.1,2054.5,0.48262567]